bitfinex/quotes_SOLUSD_20251118
["timestamp","ask_amount","ask_price","bid_price","bid_amount"]
[1763469648245,2.1463879,138.53,138.52,4.28]
[1763469648540,2.8163879,138.53,138.52,4.28]
[1763469648739,2.1463879,138.53,138.52,4.28]
[1763469649830,0.67,138.54,138.52,4.28]
[1763469650023,2.1463879,138.53,138.52,4.28]
[1763469650721,2.1463879,138.53,138.5,0.66]
[1763469650922,2.1463879,138.53,138.52,4.28]
[1763469651321,2.8163879,138.53,138.52,4.28]
[1763469651925,2.1463879,138.53,138.52,4.28]
[1763469652443,2.8163879,138.53,138.52,4.28]
[1763469652647,2.8163879,138.53,138.5,0.66]
[1763469652830,2.8163879,138.53,138.51,4.28]
[1763469654052,2.1463879,138.54,138.52,0.66]
[1763469654231,2.8163879,138.56,138.52,0.66]
[1763469654432,0.67,138.56,138.52,0.66]
[1763469654765,2.1463879,138.57,138.52,2.8063879]
[1763469655245,2.1463879,138.56,138.53,0.66]
[1763469655430,0.67,138.57,138.54,4.28]
[1763469655751,2.1463879,138.56,138.54,4.28]
[1763469656242,2.1463879,138.56,138.54,4.94]
[1763469656650,2.8163879,138.56,138.54,4.28]
[1763469657034,2.1463879,138.56,138.54,4.28]
[1763469657239,0.67,138.57,138.54,4.94]
[1763469657452,0.67,138.57,138.54,4.28]
[1763469657632,2.1463879,138.56,138.54,4.28]
[1763469657949,2.1463879,138.56,138.54,4.94]
[1763469658126,2.1463879,138.56,138.54,4.28]
[1763469658845,0.67,138.57,138.55,4.28]
[1763469659050,18.79096,138.59,138.55,4.94]
[1763469659229,2.1463879,138.57,138.55,4.94]
[1763469659548,2.1463879,138.56,138.55,4.94]
[1763469659849,0.67,138.58,138.55,4.28]
[1763469660022,2.1463879,138.57,138.55,4.28]
[1763469660229,0.67,138.58,138.55,4.28]
[1763469660230,2.1463879,138.56,138.55,4.28]
[1763469661529,0.67,138.57,138.55,4.28]
[1763469661725,2.1463879,138.56,138.55,4.28]
[1763469662349,2.8163879,138.56,138.5,0.66]
[1763469662532,2.1463879,138.53,138.51,4.28]
[1763469662734,2.1463879,138.53,138.51,4.94]
[1763469663037,2.1463879,138.55,138.52,0.66]
[1763469663259,102.7,138.61,138.52,2.8063879]
[1763469663565,1.93593088,138.62,138.55,2.1463879]
[1763469663737,2.1463879,138.6,138.56,0.66]
[1763469663940,2.1463879,138.57,138.54,0.66]
[1763469664254,2.1463879,138.58,138.55,4.28]
[1763469664727,2.1463879,138.58,138.56,0.66]
[1763469665137,0.67,138.6,138.56,0.66]
[1763469665355,2.1463879,138.58,138.56,0.66]
[1763469665541,2.1463879,138.58,138.57,4.28]
[1763469665749,2.60593088,138.62,138.57,4.28]
[1763469665952,2.1463879,138.6,138.58,0.66]
[1763469666147,2.1463879,138.6,138.59,4.28]
[1763469666348,2.1463879,138.61,138.59,4.28]
[1763469666548,2.1463879,138.61,138.6,0.66]
[1763469666853,1.93593088,138.62,138.6,0.66]
[1763469667270,4.28,138.72,138.6,0.66]
[1763469667271,6.04644878,138.77,138.61,2.1463879]
[1763469667601,0.67,138.71,138.63,18.12096]
[1763469667781,0.67,138.71,138.66,2.1463879]
[1763469667988,2.8163879,138.71,138.66,2.1463879]
[1763469668489,8.5855516,138.8,138.66,21.24553525]
[1763469668490,0.67,138.76,138.66,21.24553525]
[1763469668655,0.67,138.79,138.69,18.12096]
[1763469668852,0.67,138.79,138.64,20.50799139]
[1763469668853,0.67,138.79,138.7,4.32]
[1763469669048,2.67,138.79,138.71,4.32]
[1763469669352,2.1463879,138.72,138.71,4.32]
[1763469669553,9.78882769,138.77,138.71,4.32]
[1763469669766,2.1463879,138.72,138.62,21.69824967]
[1763469669990,2.1463879,138.69,138.64,2.1463879]
[1763469670282,0.67,138.7,138.65,2.1463879]
[1763469670462,1.6463879,138.7,138.65,23.89407487]
[1763469670660,0.67,138.7,138.65,23.89407487]
[1763469670891,0.67,138.7,138.66,2.1463879]
[1763469671054,0.67,138.72,138.67,4.32]
[1763469671260,0.67,138.72,138.67,6.4663879]
[1763469671498,2.8163879,138.72,138.67,4.32]
[1763469671685,0.67,138.72,138.67,6.4663879]
[1763469671989,2.1463879,138.73,138.68,2.1463879]
[1763469672290,13.15845734,138.85,138.71,2.1463879]
[1763469672487,2.1463879,138.78,138.72,6.4663879]
[1763469672785,18.12096,138.75,138.72,4.32]
[1763469672948,18.12096,138.75,138.67,10.5099642]
[1763469672949,5.5608427,138.75,138.67,9.78882769]
[1763469673148,0.1,138.85,138.68,4.32]
[1763469673454,5.5608427,138.78,138.69,9.78882769]
[1763469673653,18.12096,138.79,138.74,5.5608427]
[1763469673852,18.12096,138.79,138.75,9.8808427]
[1763469674248,18.12096,138.79,138.7,5.5608427]
[1763469674249,23.6818027,138.8,138.76,4.32]
[1763469674470,5.5608427,138.8,138.77,4.32]
[1763469674673,18.12096,138.78,138.77,4.32]
[1763469674880,6.2608427,138.81,138.77,4.32]
[1763469674881,9.29007986,138.81,138.77,4.32]
[1763469675093,0.8,138.85,138.78,9.29007986]
[1763469675463,0.8,138.85,138.79,9.29007986]
[1763469675664,10.09007986,138.85,138.77,4.32]
[1763469675882,10.09007986,138.85,138.78,9.29007986]
[1763469676169,0.8,138.85,138.8,9.29007986]
[1763469676371,0.7,138.84,138.81,4.32]
[1763469676591,0.1,138.85,138.81,4.32]
[1763469676787,9.78882769,138.9,138.82,0.67]
[1763469677170,9.29007986,138.88,138.82,0.67]
[1763469677397,18.12096,138.86,138.82,9.96007986]
[1763469677581,18.12096,138.86,138.74,7.20766878]
[1763469677582,9.29007986,138.85,138.68,6.02011015]
[1763469677909,18.12096,138.84,138.79,9.29007986]
[1763469678081,18.12096,138.84,138.8,4.32]
[1763469678483,18.12096,138.84,138.74,0.67]
[1763469678484,9.29007986,138.81,138.74,0.67]
[1763469678684,9.29007986,138.77,138.74,0.67]
[1763469679004,18.12096,138.81,138.75,4.32]
[1763469679005,9.29007986,138.79,138.75,4.32]
[1763469679489,9.29007986,138.78,138.76,0.67]
[1763469679668,9.29007986,138.79,138.76,0.67]
[1763469679864,9.29007986,138.78,138.73,10.5508427]
[1763469680081,18.12096,138.81,138.74,4.99]
[1763469680280,18.12096,138.81,138.75,0.67]
[1763469680494,9.29007986,138.79,138.75,0.67]
[1763469681072,9.29007986,138.78,138.75,0.67]
[1763469681278,0.68,138.8,138.75,0.67]
[1763469681475,9.29007986,138.78,138.76,4.32]
[1763469681991,9.97007986,138.77,138.72,0.69]
[1763469682202,9.29007986,138.74,138.68,18.12096]
[1763469682370,9.29007986,138.73,138.69,5.01]
[1763469682906,9.29007986,138.74,138.7,0.69]
[1763469683205,9.29007986,138.76,138.7,0.69]
[1763469683591,9.29007986,138.76,138.7,9.98007986]
[1763469683797,9.29007986,138.77,138.71,9.98007986]
[1763469684110,9.29007986,138.78,138.72,9.29007986]
[1763469684278,9.29007986,138.78,138.73,4.32]
[1763469684478,9.29007986,138.78,138.74,4.32]
[1763469684698,9.29007986,138.78,138.74,5.01]
[1763469684880,9.29007986,138.78,138.75,0.69]
[1763469685084,9.97007986,138.78,138.76,4.32]
[1763469685308,9.29007986,138.77,138.76,4.32]
[1763469686179,9.29007986,138.78,138.76,4.32]
[1763469686376,0.68,138.81,138.76,4.32]
[1763469686580,9.78882769,138.85,138.76,4.32]
[1763469686581,9.97007986,138.8,138.76,4.32]
[1763469686800,9.29007986,138.78,138.72,0.69]
[1763469687000,9.29007986,138.76,138.73,4.32]
[1763469687398,9.29007986,138.77,138.73,0.69]
[1763469687605,9.29007986,138.76,138.74,4.32]
[1763469687815,18.12096,138.81,138.74,4.32]
[1763469688103,9.29007986,138.77,138.74,4.32]
[1763469688301,0.68,138.8,138.74,4.32]
[1763469688506,9.29007986,138.77,138.74,4.32]
[1763469688988,9.29007986,138.78,138.75,0.69]
[1763469689606,9.29007986,138.78,138.74,4.32]
[1763469689789,9.29007986,138.78,138.74,0.69]
[1763469690113,9.29007986,138.78,138.75,4.32]
[1763469690316,0.68,138.8,138.75,5.01]
[1763469690517,9.29007986,138.78,138.75,5.01]
[1763469690912,0.68,138.83,138.76,5.91320314]
[1763469691127,9.29007986,138.81,138.76,0.69]
[1763469691299,9.29007986,138.8,138.75,4.32]
[1763469691499,9.29007986,138.81,138.77,0.69]
[1763469692616,9.97007986,138.83,138.78,5.22065622]
[1763469692803,9.29007986,138.82,138.79,4.32]
[1763469693211,0.68,138.83,138.79,5.01]
[1763469693422,9.29007986,138.82,138.79,4.32]
[1763469693596,9.29007986,138.84,138.8,0.69]
[1763469693995,9.29007986,138.86,138.8,0.69]
[1763469694210,0.68,138.88,138.8,0.69]
[1763469694420,0.68,138.9,138.8,0.69]
[1763469694611,0.68,138.9,138.8,9.98007986]
[1763469694803,0.68,138.9,138.81,5.01]
[1763469695121,9.29007986,138.88,138.81,5.01]
[1763469695424,9.29007986,138.87,138.82,0.69]
[1763469695717,9.29007986,138.89,138.83,13.61007986]
[1763469695892,9.29007986,138.89,138.83,4.32]
[1763469696098,9.29007986,138.89,138.84,0.69]
[1763469696307,2.61593088,138.91,138.85,4.32]
[1763469696530,2.61593088,138.91,138.86,4.32]
[1763469696531,9.29007986,138.88,138.86,4.32]
[1763469696700,0.68,138.9,138.87,4.32]
[1763469696901,9.29007986,138.89,138.87,4.32]
[1763469697324,20.05689088,138.91,138.87,4.32]
[1763469697500,9.29007986,138.89,138.87,4.32]
[1763469697698,9.29007986,138.89,138.87,5.01]
[1763469698023,9.29007986,138.9,138.87,5.01]
[1763469698224,20.05689088,138.91,138.87,5.01]
[1763469698835,9.29007986,138.9,138.88,0.69]
[1763469699018,29.34697074,138.91,138.87,4.32]
[1763469699205,11.90601074,138.91,138.86,0.69]
[1763469699405,11.90601074,138.91,138.87,4.32]
[1763469699614,2.61593088,138.91,138.87,4.32]
[1763469699806,2.61593088,138.91,138.87,5.01]
[1763469700509,1.93593088,138.91,138.87,4.32]
[1763469700704,1.93593088,138.91,138.88,5.9021707]
[1763469700916,1.93593088,138.91,138.88,0.69]
[1763469701121,1.93593088,138.91,138.89,0.69]
[1763469701922,1.93593088,138.91,138.89,22.70082525]
[1763469702329,11.22601074,138.91,138.9,4.32]
[1763469702525,1.93593088,138.91,138.86,0.69]
[1763469702714,1.93593088,138.91,138.87,9.53637086]
[1763469702925,1.93593088,138.91,138.87,4.32]
[1763469703227,1.93593088,138.91,138.87,5.01]
[1763469703403,1.93593088,138.91,138.87,26.6907777]
[1763469703606,1.93593088,138.91,138.88,0.69]
[1763469704800,1.93593088,138.91,138.87,0.69]
[1763469705004,2.58593088,138.91,138.88,5.22243227]
[1763469705232,2.58593088,138.91,138.89,4.32]
[1763469705432,19.72890755,138.9,138.82,0.69]
[1763469705649,19.72890755,138.9,138.83,9.54405708]
[1763469705850,9.78882769,138.9,138.84,5.22405708]
[1763469706049,0.65,138.89,138.84,27.7856422]
[1763469706259,0.65,138.89,138.85,5.22405708]
[1763469706751,9.94007986,138.89,138.85,5.22405708]
[1763469706959,0.65,138.89,138.85,5.22405708]
[1763469707662,0.65,138.89,138.86,5.22405708]
[1763469707868,9.78882769,138.9,138.87,4.32]
[1763469708160,0.65,138.9,138.88,5.22405708]
[1763469708656,1.93593088,138.91,138.89,9.56539335]
[1763469708885,20.05689088,138.91,138.87,0.69]
[1763469709061,2.58593088,138.91,138.88,9.5649136]
[1763469709280,2.58593088,138.91,138.89,5.2449136]
[1763469709563,12.37475857,138.91,138.9,4.32]
[1763469709777,21.01483843,138.91,138.9,4.32]
[1763469709949,21.01483843,138.91,138.85,0.69]
[1763469709950,10.43882769,138.9,138.85,0.69]
[1763469710153,10.43882769,138.9,138.86,9.57305083]
[1763469710378,0.65,138.89,138.87,5.25305083]
[1763469710568,0.65,138.89,138.88,5.25305083]
[1763469710938,2.58593088,138.91,138.88,5.25305083]
[1763469711159,2.58593088,138.91,138.86,4.32]
[1763469711160,1.93593088,138.91,138.89,5.25305083]
[1763469711346,1.93593088,138.91,138.9,9.57305083]
[1763469714969,21.66483843,138.91,138.9,5.25305083]
[1763469715169,21.66483843,138.91,138.9,9.57305083]
[1763469715538,12.37475857,138.91,138.9,9.57305083]
[1763469715739,21.66483843,138.91,138.9,9.57305083]
[1763469717470,21.66483843,138.91,138.9,5.25305083]
[1763469717644,9.78882769,138.87,138.81,0.69]
[1763469717848,9.29007986,138.86,138.82,4.32]
[1763469718061,9.94007986,138.86,138.82,4.32]
[1763469718260,9.29007986,138.86,138.82,4.32]
[1763469718444,0.65,138.85,138.81,0.69]
[1763469718773,0.65,138.85,138.82,4.32]
[1763469719072,9.94007986,138.85,138.83,4.32]
[1763469719577,19.72890755,138.84,138.8,15.6]
[1763469719747,19.72890755,138.84,138.81,4.32]
[1763469719948,10.43882769,138.84,138.81,4.32]
[1763469720164,9.78882769,138.84,138.81,4.32]
[1763469720357,0.65,138.83,138.81,4.32]
[1763469720752,19.07890755,138.82,138.8,15.6]
[1763469720955,9.29007986,138.81,138.76,21.86254021]
[1763469721254,0.65,138.8,138.77,4.32]
[1763469721465,9.94007986,138.8,138.78,4.32]
[1763469721664,0.65,138.84,138.78,13.61007986]
[1763469721871,0.65,138.84,138.78,4.32]
[1763469721872,19.07890755,138.83,138.78,4.32]
[1763469722051,19.07890755,138.83,138.76,9.98007986]
[1763469722052,9.29007986,138.82,138.76,9.98007986]
[1763469722353,9.94007986,138.82,138.77,13.61007986]
[1763469722555,0.65,138.82,138.77,13.61007986]
[1763469722751,0.65,138.82,138.77,14.30007986]
[1763469722962,0.65,138.82,138.78,0.69]
[1763469723558,0.65,138.82,138.77,13.61007986]
[1763469723754,1.93593088,138.91,138.78,9.98007986]
[1763469723755,0.65,138.84,138.78,9.98007986]
[1763469723955,19.07890755,138.87,138.8,9.29007986]
[1763469724157,19.07890755,138.87,138.78,0.69]
[1763469724158,2.58593088,138.91,138.84,9.29007986]
[1763469724375,11.87601074,138.91,138.85,14.30007986]
[1763469724578,1.93593088,138.91,138.87,9.29007986]
[1763469724791,1.93593088,138.91,138.88,4.32]
[1763469724969,11.22601074,138.91,138.88,4.32]
[1763469725282,1.93593088,138.91,138.88,4.32]
[1763469725493,9.94007986,138.9,138.88,4.32]
[1763469725681,10.43882769,138.9,138.89,4.32]
[1763469725855,19.07890755,138.9,138.89,4.32]
[1763469726054,9.78882769,138.89,138.82,9.98007986]
[1763469726275,9.29007986,138.86,138.83,4.32]
[1763469726688,0.65,138.85,138.84,4.32]
[1763469726851,9.29007986,138.86,138.84,4.32]
[1763469727051,10.43882769,138.86,138.84,4.32]
[1763469727656,9.94007986,138.88,138.85,4.32]
[1763469727878,1.93593088,138.91,138.85,4.32]
[1763469727879,9.29007986,138.89,138.85,4.32]
[1763469728079,19.07890755,138.89,138.85,4.32]
[1763469728380,10.43882769,138.89,138.85,4.32]
[1763469728561,19.72890755,138.89,138.85,4.32]
[1763469729081,9.94007986,138.88,138.85,4.32]
[1763469729584,0.65,138.87,138.86,4.32]
[1763469730082,9.94007986,138.87,138.86,4.32]
[1763469730481,0.65,138.87,138.86,4.32]
[1763469730779,9.94007986,138.87,138.86,4.32]
[1763469731167,9.29007986,138.87,138.86,4.32]
[1763469731378,9.78882769,138.88,138.86,4.32]
[1763469731565,19.72890755,138.88,138.86,4.32]
[1763469732058,19.75890755,138.87,138.81,15.1757566]
[1763469732254,9.78882769,138.84,138.82,4.32]
[1763469732477,19.07890755,138.84,138.82,4.32]
[1763469732681,0.68,138.83,138.78,6.54567674]
[1763469732983,9.29007986,138.81,138.75,15.1757566]
[1763469733181,9.97007986,138.81,138.76,4.32]
[1763469733682,9.97007986,138.81,138.76,4.98]
[1763469733983,0.68,138.81,138.76,4.98]
[1763469734164,0.68,138.81,138.76,14.27007986]
[1763469734365,0.68,138.81,138.76,0.66]
[1763469734568,9.78882769,138.8,138.75,5.88567674]
[1763469734767,19.75890755,138.8,138.76,4.32]
[1763469735683,0.68,138.79,138.77,4.32]
[1763469735981,9.78882769,138.78,138.74,21.48567674]
[1763469736200,0.68,138.82,138.75,14.27007986]
[1763469736368,19.07890755,138.81,138.75,20.1557566]
[1763469736787,16.02608481,138.81,138.75,16.42293386]
[1763469737286,15.34608481,138.81,138.75,16.42293386]
[1763469737596,15.34608481,138.81,138.74,25.38882769]
[1763469737597,15.34608481,138.78,138.76,4.32]
[1763469737980,9.78882769,138.76,138.74,25.38882769]
[1763469738182,15.34608481,138.76,138.75,4.32]
[1763469738386,16.02608481,138.76,138.74,25.38882769]
[1763469738578,10.46882769,138.76,138.75,4.32]
[1763469738780,0.68,138.75,138.74,25.38882769]
[1763469738977,0.68,138.75,138.74,29.70882769]
[1763469739388,10.46882769,138.75,138.74,9.78882769]
[1763469739694,16.02608481,138.75,138.74,14.10882769]
[1763469740687,9.78882769,138.75,138.74,14.10882769]
[1763469740892,16.02608481,138.75,138.74,14.10882769]
[1763469741574,10.46882769,138.75,138.74,14.10882769]
[1763469741890,9.78882769,138.77,138.74,14.10882769]
[1763469742082,5.55725712,138.76,138.74,14.10882769]
[1763469743285,5.55725712,138.78,138.74,14.10882769]
[1763469743488,9.78882769,138.78,138.75,0.71]
[1763469743691,9.78882769,138.81,138.75,0.71]
[1763469743905,9.78882769,138.79,138.75,0.71]
[1763469744073,15.34608481,138.79,138.75,0.71]
[1763469745888,5.55725712,138.78,138.75,0.71]
[1763469746389,5.55725712,138.78,138.74,14.10882769]
[1763469746390,5.55725712,138.77,138.74,14.10882769]
[1763469746566,5.55725712,138.77,138.75,4.32]
[1763469746772,5.55725712,138.78,138.76,4.32]
[1763469747198,5.55725712,138.77,138.76,4.32]
[1763469748094,16.03608481,138.77,138.76,4.32]
[1763469748509,16.03608481,138.77,138.74,9.78882769]
[1763469748707,16.03608481,138.77,138.76,4.32]
[1763469748999,15.34608481,138.77,138.76,4.32]
[1763469750373,15.34608481,138.77,138.74,9.78882769]
[1763469750374,9.78882769,138.76,138.74,9.78882769]
[1763469750606,15.34608481,138.75,138.74,9.78882769]
[1763469750786,16.03608481,138.75,138.74,14.10882769]
[1763469751578,10.47882769,138.75,138.74,14.10882769]
[1763469751782,16.03608481,138.75,138.74,14.10882769]
[1763469753795,10.47882769,138.74,138.71,0.2]
[1763469753984,10.47882769,138.74,138.73,4.32]
[1763469754182,15.34608481,138.74,138.73,4.32]
[1763469754816,27.90978769,138.72,138.71,0.2]
[1763469754982,33.46704481,138.72,138.71,4.32]
[1763469755184,9.78882769,138.71,138.65,0.71]
[1763469755400,5.55725712,138.66,138.65,0.71]
[1763469755602,5.55725712,138.66,138.65,5.03]
[1763469755805,5.55725712,138.67,138.65,5.03]
[1763469755997,5.55725712,138.68,138.65,5.03]
[1763469756204,5.55725712,138.68,138.66,0.71]
[1763469756508,10.47882769,138.71,138.66,0.71]
[1763469756509,5.55725712,138.7,138.66,0.71]
[1763469756797,5.55725712,138.68,138.66,0.71]
[1763469757681,5.55725712,138.69,138.66,0.71]
[1763469757882,5.55725712,138.68,138.66,0.71]
[1763469758085,5.55725712,138.69,138.66,0.71]
[1763469759687,5.55725712,138.68,138.66,0.71]
[1763469759887,5.55725712,138.69,138.66,0.71]
[1763469760103,5.55725712,138.68,138.66,0.71]
[1763469760678,5.55725712,138.69,138.66,0.71]
[1763469761003,10.47882769,138.72,138.62,0.71]
[1763469761004,5.55725712,138.67,138.62,0.71]
[1763469761219,5.55725712,138.67,138.63,4.32]
[1763469761503,5.55725712,138.68,138.64,0.71]
[1763469761693,5.55725712,138.67,138.64,0.71]
[1763469761873,9.78882769,138.7,138.64,0.71]
[1763469761874,5.55725712,138.66,138.64,0.71]
[1763469762288,5.55725712,138.69,138.64,0.71]
[1763469763081,5.55725712,138.68,138.64,0.71]
[1763469764381,5.55725712,138.67,138.64,0.71]
[1763469764805,5.55725712,138.7,138.64,6.26725712]
[1763469765183,5.55725712,138.71,138.65,6.23725712]
[1763469765383,5.55725712,138.71,138.66,5.0]
[1763469765608,5.55725712,138.7,138.66,5.0]
[1763469765785,9.78882769,138.72,138.67,0.68]
[1763469765987,5.55725712,138.7,138.67,0.68]
[1763469767802,5.55725712,138.69,138.67,0.68]
[1763469767996,10.50882769,138.72,138.66,4.32]
[1763469767997,5.55725712,138.68,138.66,4.32]
[1763469768315,5.55725712,138.7,138.67,0.68]
[1763469768797,5.55725712,138.69,138.67,0.68]
[1763469769520,5.55725712,138.71,138.67,0.68]
[1763469769990,5.55725712,138.7,138.67,0.68]
[1763469770310,6.27725712,138.71,138.67,0.68]
[1763469770517,5.55725712,138.71,138.67,0.68]
[1763469770733,5.55725712,138.72,138.67,6.23725712]
[1763469771310,5.55725712,138.72,138.68,0.68]
[1763469771508,6.27725712,138.72,138.69,4.32]
[1763469772099,5.55725712,138.72,138.69,4.32]
[1763469772819,2.136455,138.72,138.69,4.32]
[1763469773494,2.136455,138.7,138.66,0.68]
[1763469773706,2.136455,138.69,138.67,4.32]
[1763469773891,2.136455,138.7,138.67,4.32]
[1763469774096,2.136455,138.69,138.67,4.32]
[1763469774419,2.136455,138.68,138.63,24.68663674]
[1763469774598,2.136455,138.68,138.64,4.32]
[1763469774916,5.5678322,138.67,138.64,5.0]
[1763469775122,5.5678322,138.67,138.61,24.00663674]
[1763469775302,5.5678322,138.67,138.63,6.56567674]
[1763469775499,5.5678322,138.67,138.63,0.68]
[1763469776392,5.5678322,138.67,138.63,6.56567674]
[1763469776891,5.5678322,138.66,138.62,10.20567674]
[1763469777084,5.5678322,138.68,138.63,6.2478322]
[1763469777284,6.2878322,138.69,138.64,11.45350894]
[1763469777500,5.5678322,138.7,138.65,5.0]
[1763469777701,6.2878322,138.7,138.65,4.32]
[1763469777890,6.2878322,138.69,138.65,5.0]
[1763469778103,5.5678322,138.68,138.65,4.32]
[1763469778593,6.2878322,138.68,138.65,4.32]
[1763469778984,5.5678322,138.68,138.65,4.32]
[1763469779213,5.5678322,138.7,138.66,0.68]
[1763469779405,6.2878322,138.71,138.66,6.2478322]
[1763469779590,0.72,138.7,138.66,0.68]
[1763469779792,6.2878322,138.71,138.66,5.5678322]
[1763469779991,9.78882769,138.71,138.67,6.2478322]
[1763469780218,15.35665989,138.71,138.68,4.32]
[1763469780418,0.72,138.73,138.68,5.0]
[1763469780734,174.00882769,138.79,138.69,0.68]
[1763469780900,103.42,138.81,138.71,5.5678322]
[1763469781102,5.5678322,138.76,138.72,4.32]
[1763469781492,0.72,138.75,138.72,4.32]
[1763469781710,5.5678322,138.74,138.72,4.32]
[1763469782098,15.35665989,138.75,138.72,4.32]
[1763469782305,16.07665989,138.75,138.73,4.32]
[1763469782503,10.50882769,138.75,138.73,4.32]
[1763469782821,6.2878322,138.74,138.7,5.88567674]
[1763469783016,6.2878322,138.74,138.71,4.32]
[1763469783329,0.72,138.77,138.72,5.5678322]
[1763469783508,9.78882769,138.79,138.74,5.5678322]
[1763469783834,9.78882769,138.79,138.75,4.32]
[1763469784000,0.72,138.79,138.75,10.5678322]
[1763469784199,5.5678322,138.8,138.75,10.5678322]
[1763469784500,6.2878322,138.8,138.75,10.5678322]
[1763469785019,0.72,138.8,138.75,9.8878322]
[1763469785232,6.2878322,138.8,138.76,0.68]
[1763469785439,5.5678322,138.8,138.76,0.68]
[1763469785610,9.78882769,138.82,138.77,11.45350894]
[1763469785797,15.35665989,138.82,138.78,4.32]
[1763469786006,15.35665989,138.82,138.78,5.0]
[1763469786204,5.5678322,138.85,138.79,6.2478322]
[1763469786633,5.5678322,138.85,138.8,0.68]
[1763469786835,5.5678322,138.85,138.81,4.32]
[1763469787012,6.3878322,138.86,138.81,4.32]
[1763469787332,6.3878322,138.86,138.82,0.68]
[1763469787521,6.3878322,138.86,138.81,4.32]
[1763469787717,0.82,138.86,138.81,5.0]
[1763469787939,6.3878322,138.86,138.82,0.68]
[1763469788335,5.6678322,138.86,138.81,4.32]
[1763469788630,6.2878322,138.85,138.81,4.32]
[1763469789007,6.2878322,138.85,138.8,0.68]
[1763469789008,5.5678322,138.83,138.78,24.00663674]
[1763469789333,5.5678322,138.83,138.79,4.32]
[1763469789545,0.72,138.83,138.79,5.0]
[1763469789714,5.5678322,138.84,138.79,9.8878322]
[1763469790038,6.2878322,138.84,138.8,0.68]
[1763469791323,5.5678322,138.81,138.75,6.56567674]
[1763469791530,9.78882769,138.82,138.76,4.32]
[1763469791833,0.72,138.82,138.76,5.0]
[1763469792012,6.2878322,138.81,138.76,4.32]
[1763469792212,6.2878322,138.81,138.76,9.8878322]
[1763469792431,0.71,138.8,138.76,10.5878322]
[1763469792819,5.5678322,138.82,138.77,5.5678322]
[1763469793138,5.5678322,138.84,138.79,5.5678322]
[1763469793326,6.2778322,138.84,138.8,4.32]
[1763469793640,0.71,138.83,138.8,4.32]
[1763469795028,6.2778322,138.85,138.8,4.32]
[1763469795437,0.1,138.86,138.8,4.32]
[1763469795438,6.2778322,138.84,138.8,4.32]
[1763469795920,0.71,138.84,138.8,5.02]
[1763469796132,0.71,138.84,138.81,4.32]
[1763469796618,5.5678322,138.85,138.81,4.32]
[1763469796837,9.99270357,138.85,138.81,4.32]
[1763469797039,9.99270357,138.85,138.81,5.02]
[1763469797429,0.71,138.85,138.81,5.02]
[1763469799044,9.99270357,138.85,138.81,5.02]
[1763469799435,0.71,138.85,138.81,5.02]
[1763469799636,9.99270357,138.85,138.81,5.02]
[1763469799839,9.28270357,138.85,138.81,4.32]
[1763469800032,0.71,138.84,138.81,4.32]
[1763469800231,19.78153126,138.84,138.77,0.7]
[1763469800435,9.96270357,138.83,138.78,4.32]
[1763469800647,0.68,138.83,138.79,9.28270357]
[1763469800837,0.68,138.83,138.79,0.71]
[1763469802147,0.68,138.83,138.78,4.32]
[1763469802452,9.28270357,138.81,138.75,9.28270357]
[1763469802663,9.28270357,138.81,138.76,4.32]
[1763469802826,0.68,138.81,138.76,13.60270357]
[1763469803029,0.68,138.8,138.76,14.31270357]
[1763469803229,0.68,138.8,138.76,4.32]
[1763469804450,0.68,138.8,138.76,5.03]
[1763469805134,0.68,138.8,138.76,4.32]
[1763469805328,0.68,138.8,138.76,13.60270357]